[Event "Early-Titled-Tuesday-Blitz-May-14-2024"]
[Site "Chess.com"]
[Date "2024.05.14"]
[Round "4"]
[White "Mackster23"]
[Black "cthulhuuu"]
[Result "1/2-1/2"]
[WhiteElo "2665"]
[BlackElo "2443"]
[TimeControl "180+1"]
[EndTime "8:41:33 PDT"]
[Termination "Game drawn - insufficient material"]

1. e4 {[%clk 0:03:00.9]} 1... d6 {[%clk 0:03:00]} 2. d4 {[%clk 0:03:00.8]} 2...
Nf6 {[%clk 0:03:00.6]} 3. Nc3 {[%clk 0:03:01.3]} 3... c6 {[%clk 0:03:01.1]} 4.
Be3 {[%clk 0:02:59.2]} 4... b5 {[%clk 0:03:01]} 5. f3 {[%clk 0:02:58.7]} 5... e5
{[%clk 0:03:00.7]} 6. dxe5 {[%clk 0:02:54]} 6... dxe5 {[%clk 0:03:01.6]} 7.
Qxd8+ {[%clk 0:02:53.6]} 7... Kxd8 {[%clk 0:03:02.5]} 8. a4 {[%clk 0:02:51.4]}
8... b4 {[%clk 0:03:01.7]} 9. Nb1 {[%clk 0:02:52.1]} 9... Be6 {[%clk 0:03:01.3]}
10. Nd2 {[%clk 0:02:49.8]} 10... Nbd7 {[%clk 0:03:00.5]} 11. a5 {[%clk
0:02:47.3]} 11... Bc5 {[%clk 0:02:59.5]} 12. Kf2 {[%clk 0:02:46.7]} 12... Bxe3+
{[%clk 0:02:46.4]} 13. Kxe3 {[%clk 0:02:47.6]} 13... Nc5 {[%clk 0:02:46.7]} 14.
Bc4 {[%clk 0:02:33.7]} 14... Ke7 {[%clk 0:02:38.6]} 15. Ne2 {[%clk 0:02:29.7]}
15... Rhd8 {[%clk 0:02:36.8]} 16. Bxe6 {[%clk 0:02:14.6]} 16... Kxe6 {[%clk
0:02:27.8]} 17. Nc4 {[%clk 0:02:09.6]} 17... Rd7 {[%clk 0:02:18.7]} 18. Rhd1
{[%clk 0:02:00.2]} 18... Rad8 {[%clk 0:02:18.6]} 19. Rxd7 {[%clk 0:01:39.8]}
19... Rxd7 {[%clk 0:02:19.5]} 20. a6 {[%clk 0:01:40.1]} 20... Rd8 {[%clk
0:02:08]} 21. Ra5 {[%clk 0:01:34.3]} 21... Nfd7 {[%clk 0:02:08.2]} 22. b3 {[%clk
0:01:03]} 22... Rb8 {[%clk 0:02:01.2]} 23. g3 {[%clk 0:00:57.3]} 23... Rb5
{[%clk 0:01:57.1]} 24. Ra1 {[%clk 0:00:52.4]} 24... Nb6 {[%clk 0:01:55.6]} 25.
Nxe5 {[%clk 0:00:27.8]} 25... Kxe5 {[%clk 0:01:52.1]} 26. Nd4 {[%clk 0:00:28.2]}
26... Nxb3 {[%clk 0:01:15.9]} 27. f4+ {[%clk 0:00:11.8]} 27... Kf6 {[%clk
0:01:09.9]} 28. e5+ {[%clk 0:00:11.5]} 28... Ke7 {[%clk 0:01:02.8]} 29. cxb3
{[%clk 0:00:07.9]} 29... Rc5 {[%clk 0:01:02.8]} 30. Ke4 {[%clk 0:00:04.2]} 30...
Nd5 {[%clk 0:01:00.5]} 31. Nxc6+ {[%clk 0:00:03.9]} 31... Rxc6 {[%clk
0:00:50.1]} 32. Kxd5 {[%clk 0:00:04.8]} 32... Rc3 {[%clk 0:00:50.4]} 33. Ra4
{[%clk 0:00:03.7]} 33... Rxb3 {[%clk 0:00:50.2]} 34. Kc4 {[%clk 0:00:04]} 34...
Rc3+ {[%clk 0:00:37.3]} 35. Kxb4 {[%clk 0:00:04.1]} 35... Rc2 {[%clk 0:00:37.5]}
36. h4 {[%clk 0:00:03.2]} 36... Ke6 {[%clk 0:00:34.6]} 37. Ra3 {[%clk
0:00:02.9]} 37... Rb2+ {[%clk 0:00:31.5]} 38. Rb3 {[%clk 0:00:02.9]} 38... Rxb3+
{[%clk 0:00:21.7]} 39. Kxb3 {[%clk 0:00:03.8]} 39... Kf5 {[%clk 0:00:22.6]} 40.
Kc4 {[%clk 0:00:02.9]} 40... Kg4 {[%clk 0:00:23]} 41. Kd5 {[%clk 0:00:02.6]}
41... g6 {[%clk 0:00:22.9]} 42. Kd6 {[%clk 0:00:02.5]} 42... Kxg3 {[%clk
0:00:23.2]} 43. Ke7 {[%clk 0:00:01.5]} 43... Kxf4 {[%clk 0:00:23.3]} 44. Kxf7
{[%clk 0:00:01.4]} 44... Kxe5 {[%clk 0:00:23.7]} 45. Kg7 {[%clk 0:00:01.3]}
45... Kf5 {[%clk 0:00:22.9]} 46. Kxh7 {[%clk 0:00:01.6]} 46... g5 {[%clk
0:00:23.3]} 47. hxg5 {[%clk 0:00:01.1]} 47... Kxg5 {[%clk 0:00:23.8]} 48. Kg7
{[%clk 0:00:02]} 48... Kf5 {[%clk 0:00:24.3]} 49. Kf7 {[%clk 0:00:02.3]} 49...
Ke5 {[%clk 0:00:24.8]} 50. Kg6 {[%clk 0:00:02.9]} 50... Kd6 {[%clk 0:00:24.9]}
51. Kf5 {[%clk 0:00:03.5]} 51... Kc6 {[%clk 0:00:25.4]} 52. Ke4 {[%clk
0:00:04.3]} 52... Kb6 {[%clk 0:00:26]} 53. Kd3 {[%clk 0:00:05.2]} 53... Kxa6
{[%clk 0:00:26.5]} 54. Kc2 {[%clk 0:00:06.1]} 54... Kb5 {[%clk 0:00:27]} 55. Kb1
{[%clk 0:00:07]} 55... a5 {[%clk 0:00:27.6]} 56. Ka1 {[%clk 0:00:07.9]} 56... a4
{[%clk 0:00:28.2]} 57. Kb1 {[%clk 0:00:08.8]} 57... a3 {[%clk 0:00:28.7]} 58.
Ka1 {[%clk 0:00:09.7]} 58... a2 {[%clk 0:00:29.2]} 59. Kxa2 {[%clk 0:00:09.2]}
1/2-1/2

[Event "Early-Titled-Tuesday-Blitz-May-14-2024"]
[Site "Chess.com"]
[Date "2024.05.14"]
[Round "4"]
[White "SchmakAttack"]
[Black "Vasily_IM"]
[Result "0-1"]
[WhiteElo "2777"]
[BlackElo "2609"]
[TimeControl "180+1"]
[EndTime "8:41:34 PDT"]
[Termination "Vasily_IM won by resignation"]

1. d4 {[%clk 0:03:00.9]} 1... d5 {[%clk 0:02:59.3]} 2. c4 {[%clk 0:03:00.4]}
2... e6 {[%clk 0:02:59.3]} 3. Nc3 {[%clk 0:03:00.4]} 3... Nf6 {[%clk 0:02:59.8]}
4. cxd5 {[%clk 0:02:59.8]} 4... exd5 {[%clk 0:03:00.7]} 5. Bg5 {[%clk
0:03:00.3]} 5... Be7 {[%clk 0:03:00.4]} 6. e3 {[%clk 0:02:59.1]} 6... O-O {[%clk
0:03:00.1]} 7. Bd3 {[%clk 0:02:57.9]} 7... Nbd7 {[%clk 0:02:59.7]} 8. h3 {[%clk
0:02:44.4]} 8... c6 {[%clk 0:02:59.1]} 9. Nf3 {[%clk 0:02:43.7]} 9... Re8 {[%clk
0:02:58.8]} 10. Bf4 {[%clk 0:02:36.5]} 10... Nf8 {[%clk 0:02:58.1]} 11. O-O
{[%clk 0:02:33.9]} 11... Be6 {[%clk 0:02:56.4]} 12. Rb1 {[%clk 0:02:26.7]} 12...
a5 {[%clk 0:02:55.7]} 13. a3 {[%clk 0:02:26]} 13... Ng6 {[%clk 0:02:45.2]} 14.
Bh2 {[%clk 0:02:26]} 14... Bd6 {[%clk 0:02:45]} 15. Bxd6 {[%clk 0:02:25.7]}
15... Qxd6 {[%clk 0:02:44.6]} 16. Qc2 {[%clk 0:02:18.3]} 16... b5 {[%clk
0:02:38]} 17. Rbc1 {[%clk 0:02:01.7]} 17... a4 {[%clk 0:02:35.7]} 18. Na2 {[%clk
0:01:37.9]} 18... Rac8 {[%clk 0:02:29]} 19. Nb4 {[%clk 0:01:38.1]} 19... Bd7
{[%clk 0:02:27.9]} 20. Na6 {[%clk 0:01:26.4]} 20... Ne4 {[%clk 0:02:08.3]} 21.
Nc5 {[%clk 0:01:26.1]} 21... f5 {[%clk 0:02:03.3]} 22. b3 {[%clk 0:01:13.9]}
22... axb3 {[%clk 0:01:59.9]} 23. Qxb3 {[%clk 0:01:14.8]} 23... Ra8 {[%clk
0:01:48.3]} 24. Rc2 {[%clk 0:00:59]} 24... Re7 {[%clk 0:01:26.4]} 25. Rfc1
{[%clk 0:00:57.2]} 25... Be8 {[%clk 0:01:26.1]} 26. Qb4 {[%clk 0:00:31.4]} 26...
h6 {[%clk 0:01:12.9]} 27. Rb2 {[%clk 0:00:25.8]} 27... Kh7 {[%clk 0:01:09]} 28.
a4 {[%clk 0:00:13.3]} 28... bxa4 {[%clk 0:00:59.4]} 29. Nxa4 {[%clk 0:00:14.2]}
29... Rea7 {[%clk 0:00:49.9]} 30. Qxd6 {[%clk 0:00:12.8]} 30... Nxd6 {[%clk
0:00:49.4]} 31. Nc5 {[%clk 0:00:13.2]} 31... Ne4 {[%clk 0:00:46.4]} 32. Ne6
{[%clk 0:00:05.6]} 32... Bd7 {[%clk 0:00:40.2]} 33. Nf4 {[%clk 0:00:04.9]} 33...
Nxf4 {[%clk 0:00:39.1]} 34. exf4 {[%clk 0:00:05.8]} 34... Ra1 {[%clk 0:00:26.7]}
35. Rxa1 {[%clk 0:00:06]} 35... Rxa1+ {[%clk 0:00:26.6]} 36. Kh2 {[%clk
0:00:06.9]} 36... c5 {[%clk 0:00:27.1]} 37. dxc5 {[%clk 0:00:06]} 37... Nxc5
{[%clk 0:00:26.8]} 38. Bc2 {[%clk 0:00:06.8]} 38... Ne4 {[%clk 0:00:24.4]} 39.
Ne5 {[%clk 0:00:03.4]} 39... Ba4 {[%clk 0:00:19.9]} 40. f3 {[%clk 0:00:02.2]}
40... Bxc2 {[%clk 0:00:18.5]} 41. Rxc2 {[%clk 0:00:03.1]} 41... Nf6 {[%clk
0:00:18.4]} 42. Rc7 {[%clk 0:00:02.7]} 42... Ra8 {[%clk 0:00:12.8]} 43. Rc6
{[%clk 0:00:01.8]} 43... Rd8 {[%clk 0:00:12.3]} 44. Kg1 {[%clk 0:00:01.7]} 44...
d4 {[%clk 0:00:12.3]} 45. Nd3 {[%clk 0:00:02.1]} 45... Nd5 {[%clk 0:00:11.3]}
46. Kf2 {[%clk 0:00:01.5]} 46... Ne3 {[%clk 0:00:11.3]} 47. Rc5 {[%clk
0:00:01.3]} 47... Ra8 {[%clk 0:00:10.6]} 48. Rb5 {[%clk 0:00:01.4]} 48... Ra2+
{[%clk 0:00:10.4]} 49. Rb2 {[%clk 0:00:01.7]} 49... Nd1+ {[%clk 0:00:10.4]} 0-1

[Event "Early-Titled-Tuesday-Blitz-May-14-2024"]
[Site "Chess.com"]
[Date "2024.05.14"]
[Round "4"]
[White "CrushingKings"]
[Black "Josgar05"]
[Result "1-0"]
[WhiteElo "2630"]
[BlackElo "2438"]
[TimeControl "180+1"]
[EndTime "8:41:37 PDT"]
[Termination "CrushingKings won on time"]

1. Nf3 {[%clk 0:03:00.9]} 1... Nf6 {[%clk 0:02:53.1]} 2. g3 {[%clk 0:02:59.9]}
2... g6 {[%clk 0:02:52.4]} 3. b3 {[%clk 0:02:59.6]} 3... b6 {[%clk 0:02:51.1]}
4. Bb2 {[%clk 0:02:59.7]} 4... Bb7 {[%clk 0:02:50.8]} 5. Bg2 {[%clk 0:03:00]}
5... Bg7 {[%clk 0:02:50.6]} 6. c4 {[%clk 0:03:00.5]} 6... c5 {[%clk 0:02:50.1]}
7. O-O {[%clk 0:03:00.4]} 7... O-O {[%clk 0:02:49]} 8. d4 {[%clk 0:02:59.9]}
8... cxd4 {[%clk 0:02:46.6]} 9. Qxd4 {[%clk 0:02:59.7]} 9... Nc6 {[%clk
0:02:27.7]} 10. Qd2 {[%clk 0:02:51.5]} 10... Rc8 {[%clk 0:02:15.3]} 11. Nc3
{[%clk 0:02:50.8]} 11... d6 {[%clk 0:02:09.6]} 12. Rfd1 {[%clk 0:02:48.4]} 12...
Qd7 {[%clk 0:01:58.3]} 13. Rac1 {[%clk 0:02:42.6]} 13... Rfd8 {[%clk 0:01:56.3]}
14. e4 {[%clk 0:02:17.7]} 14... Qe8 {[%clk 0:01:34.9]} 15. Qe2 {[%clk
0:01:49.9]} 15... Ne5 {[%clk 0:01:09.8]} 16. Nd4 {[%clk 0:01:36.7]} 16... Nc6
{[%clk 0:01:03.5]} 17. Nf3 {[%clk 0:01:22.6]} 17... Ne5 {[%clk 0:01:02.7]} 18.
Nd5 {[%clk 0:01:21.7]} 18... Nxd5 {[%clk 0:00:59.3]} 19. exd5 {[%clk 0:01:21]}
19... Nxf3+ {[%clk 0:00:58]} 20. Bxf3 {[%clk 0:01:21.2]} 20... Bxb2 {[%clk
0:00:51]} 21. Qxb2 {[%clk 0:01:21]} 21... Rc7 {[%clk 0:00:50.7]} 22. Rc3 {[%clk
0:01:14.4]} 22... Qf8 {[%clk 0:00:50.6]} 23. Re3 {[%clk 0:01:13.8]} 23... Qg7
{[%clk 0:00:50.5]} 24. Qe2 {[%clk 0:01:13.3]} 24... Qf6 {[%clk 0:00:50]} 25. h4
{[%clk 0:01:06.7]} 25... a6 {[%clk 0:00:42.4]} 26. Re4 {[%clk 0:01:01]} 26...
Bc8 {[%clk 0:00:30.1]} 27. Re1 {[%clk 0:00:45.8]} 27... Re8 {[%clk 0:00:25.8]}
28. Rf4 {[%clk 0:00:41.2]} 28... Qg7 {[%clk 0:00:26]} 29. a4 {[%clk 0:00:35.4]}
29... a5 {[%clk 0:00:23.4]} 30. Qe3 {[%clk 0:00:35]} 30... Rb7 {[%clk
0:00:23.3]} 31. Kg2 {[%clk 0:00:32]} 31... Bd7 {[%clk 0:00:18.3]} 32. Re4 {[%clk
0:00:26.4]} 32... Bc8 {[%clk 0:00:18.2]} 33. Qf4 {[%clk 0:00:23.8]} 33... Bf5
{[%clk 0:00:17.9]} 34. R4e3 {[%clk 0:00:23.9]} 34... Kf8 {[%clk 0:00:15.4]} 35.
Qxd6 {[%clk 0:00:20.7]} 35... Rd7 {[%clk 0:00:11.9]} 36. Qxb6 {[%clk 0:00:20.2]}
36... h5 {[%clk 0:00:08.5]} 37. d6 {[%clk 0:00:18]} 37... e5 {[%clk 0:00:08.4]}
38. c5 {[%clk 0:00:16]} 38... Qf6 {[%clk 0:00:07.9]} 39. Bc6 {[%clk 0:00:14.8]}
39... Red8 {[%clk 0:00:06.4]} 40. Bxd7 {[%clk 0:00:14.7]} 40... Rxd7 {[%clk
0:00:07.3]} 41. Rxe5 {[%clk 0:00:14]} 41... Kg7 {[%clk 0:00:06.9]} 42. Qc6
{[%clk 0:00:12.7]} 42... Rd8 {[%clk 0:00:06.8]} 43. Qd5 {[%clk 0:00:10.4]} 43...
Be6 {[%clk 0:00:06.4]} 44. Rxe6 {[%clk 0:00:10.5]} 44... fxe6 {[%clk 0:00:07.3]}
45. Rxe6 {[%clk 0:00:10]} 45... Qf7 {[%clk 0:00:07.8]} 46. Qe5+ {[%clk
0:00:08.6]} 46... Kh7 {[%clk 0:00:07.8]} 47. Re7 {[%clk 0:00:08.9]} 47... Qxe7
{[%clk 0:00:08.6]} 48. Qxe7+ {[%clk 0:00:08.4]} 48... Kh6 {[%clk 0:00:09.5]} 49.
Qxd8 {[%clk 0:00:08.6]} 1-0

[Event "Early-Titled-Tuesday-Blitz-May-14-2024"]
[Site "Chess.com"]
[Date "2024.05.14"]
[Round "4"]
[White "blitzking1729"]
[Black "Manukyan_Artak"]
[Result "1-0"]
[WhiteElo "2758"]
[BlackElo "2570"]
[TimeControl "180+1"]
[EndTime "8:41:39 PDT"]
[Termination "blitzking1729 won by resignation"]

1. c4 {[%clk 0:02:59]} 1... g6 {[%clk 0:02:58.8]} 2. Nc3 {[%clk 0:02:50.6]} 2...
Bg7 {[%clk 0:02:59.7]} 3. g3 {[%clk 0:02:50.5]} 3... h5 {[%clk 0:02:58.4]} 4.
Nf3 {[%clk 0:02:48.8]} 4... e5 {[%clk 0:02:57.9]} 5. d3 {[%clk 0:02:47.4]} 5...
d6 {[%clk 0:02:50.7]} 6. Bg5 {[%clk 0:02:43.2]} 6... f6 {[%clk 0:02:50]} 7. Bd2
{[%clk 0:02:42.6]} 7... c5 {[%clk 0:02:49.3]} 8. h4 {[%clk 0:02:40.4]} 8... Nc6
{[%clk 0:02:47.8]} 9. Bg2 {[%clk 0:02:40.2]} 9... Bg4 {[%clk 0:02:45.5]} 10. Nd5
{[%clk 0:02:39]} 10... Nge7 {[%clk 0:02:44.3]} 11. a3 {[%clk 0:02:31.8]} 11...
a5 {[%clk 0:02:43.7]} 12. O-O {[%clk 0:02:29]} 12... Nxd5 {[%clk 0:02:40.3]} 13.
cxd5 {[%clk 0:02:29.1]} 13... Ne7 {[%clk 0:02:40.3]} 14. Nh2 {[%clk 0:02:21.7]}
14... Bf5 {[%clk 0:02:33.2]} 15. b4 {[%clk 0:02:20.1]} 15... axb4 {[%clk
0:02:30]} 16. axb4 {[%clk 0:02:21]} 16... Rxa1 {[%clk 0:02:24.9]} 17. Qxa1
{[%clk 0:02:21.9]} 17... cxb4 {[%clk 0:02:25.2]} 18. Bxb4 {[%clk 0:02:21.1]}
18... O-O {[%clk 0:02:24.5]} 19. e4 {[%clk 0:02:21.1]} 19... Bc8 {[%clk
0:02:19.7]} 20. Qa3 {[%clk 0:02:20.8]} 20... Rf7 {[%clk 0:02:09.3]} 21. Bxd6
{[%clk 0:02:19.3]} 21... Bf8 {[%clk 0:02:09.6]} 22. Rc1 {[%clk 0:02:15.6]} 22...
g5 {[%clk 0:01:51.3]} 23. hxg5 {[%clk 0:02:10.8]} 23... fxg5 {[%clk 0:01:52.2]}
24. Nf3 {[%clk 0:02:10.1]} 24... Ng6 {[%clk 0:01:41.8]} 25. Bxf8 {[%clk
0:02:02.4]} 25... Rxf8 {[%clk 0:01:42.7]} 26. Qb2 {[%clk 0:01:50.8]} 26... Qf6
{[%clk 0:01:38.5]} 27. d4 {[%clk 0:01:50.2]} 27... g4 {[%clk 0:01:25.7]} 28.
Nxe5 {[%clk 0:01:44.2]} 28... h4 {[%clk 0:01:24.8]} 29. Nxg6 {[%clk 0:01:40.2]}
29... Qxg6 {[%clk 0:01:23.1]} 30. gxh4 {[%clk 0:01:40]} 30... g3 {[%clk
0:01:19.8]} 31. Rf1 {[%clk 0:01:33.2]} 31... Bh3 {[%clk 0:00:58.6]} 32. Bxh3
{[%clk 0:01:07.6]} 32... gxf2+ {[%clk 0:00:55.5]} 33. Kh2 {[%clk 0:01:06.9]}
33... Rf3 {[%clk 0:00:39.8]} 34. Qxf2 {[%clk 0:00:25.9]} 34... Rxf2+ {[%clk
0:00:38.8]} 35. Rxf2 {[%clk 0:00:26.8]} 35... Qxe4 {[%clk 0:00:38.9]} 36. d6
{[%clk 0:00:23.4]} 36... Qxd4 {[%clk 0:00:34.6]} 37. Rg2+ {[%clk 0:00:22.9]}
37... Kf7 {[%clk 0:00:33.4]} 38. d7 {[%clk 0:00:23.3]} 38... b5 {[%clk
0:00:29.7]} 39. Re2 {[%clk 0:00:23.1]} 39... Qd6+ {[%clk 0:00:27.4]} 40. Kg2
{[%clk 0:00:20.6]} 40... Qd5+ {[%clk 0:00:27.4]} 41. Kg1 {[%clk 0:00:20.5]}
41... Qd1+ {[%clk 0:00:26.9]} 42. Kf2 {[%clk 0:00:20.7]} 42... Qd4+ {[%clk
0:00:27.6]} 43. Kf3 {[%clk 0:00:20.6]} 43... Qxh4 {[%clk 0:00:21.9]} 44. Bg4
{[%clk 0:00:13.9]} 44... Qf6+ {[%clk 0:00:19.8]} 45. Kg3 {[%clk 0:00:10.1]}
45... Qd6+ {[%clk 0:00:19.7]} 46. Kh3 {[%clk 0:00:09.3]} 46... Qd3+ {[%clk
0:00:16.7]} 47. Kh4 {[%clk 0:00:09.1]} 47... Qh7+ {[%clk 0:00:16.7]} 48. Bh5+
{[%clk 0:00:09]} 1-0

[Event "Early-Titled-Tuesday-Blitz-May-14-2024"]
[Site "Chess.com"]
[Date "2024.05.14"]
[Round "4"]
[White "Herzog2012"]
[Black "Escudito"]
[Result "1-0"]
[WhiteElo "2544"]
[BlackElo "2342"]
[TimeControl "180+1"]
[EndTime "8:41:41 PDT"]
[Termination "Herzog2012 won by checkmate"]

1. e4 {[%clk 0:02:57]} 1... e6 {[%clk 0:02:59.9]} 2. d4 {[%clk 0:02:54]} 2... d5
{[%clk 0:03:00.3]} 3. Nd2 {[%clk 0:02:54.7]} 3... c5 {[%clk 0:02:58.9]} 4. exd5
{[%clk 0:02:53.6]} 4... Qxd5 {[%clk 0:02:53.2]} 5. Ngf3 {[%clk 0:02:53.4]} 5...
Nf6 {[%clk 0:02:51.5]} 6. Bc4 {[%clk 0:02:46.9]} 6... Qd8 {[%clk 0:02:49]} 7.
O-O {[%clk 0:02:42.7]} 7... cxd4 {[%clk 0:02:46]} 8. Nb3 {[%clk 0:02:40.1]} 8...
Be7 {[%clk 0:02:40.2]} 9. Qe2 {[%clk 0:02:38.9]} 9... Nc6 {[%clk 0:02:36.9]} 10.
Rd1 {[%clk 0:02:37.4]} 10... O-O {[%clk 0:02:34.5]} 11. Nbxd4 {[%clk 0:02:32.1]}
11... Nxd4 {[%clk 0:02:32.1]} 12. Rxd4 {[%clk 0:02:33]} 12... Qc7 {[%clk
0:02:23.9]} 13. Bf4 {[%clk 0:02:26.3]} 13... Qc5 {[%clk 0:02:19.1]} 14. Rad1
{[%clk 0:02:19.8]} 14... a6 {[%clk 0:02:18.7]} 15. Ne5 {[%clk 0:02:12.4]} 15...
b5 {[%clk 0:02:02.7]} 16. Bb3 {[%clk 0:02:05]} 16... Bb7 {[%clk 0:01:48.4]} 17.
Nxf7 {[%clk 0:01:15.5]} 17... Kxf7 {[%clk 0:01:28.9]} 18. Qxe6+ {[%clk
0:01:04.6]} 18... Kg6 {[%clk 0:01:19.1]} 19. c3 {[%clk 0:00:35.9]} 19... Qf5
{[%clk 0:00:49.7]} 20. Qxe7 {[%clk 0:00:31.2]} 20... Be4 {[%clk 0:00:45.3]} 21.
Qe5 {[%clk 0:00:06.6]} 21... Rae8 {[%clk 0:00:40.6]} 22. Qxf5+ {[%clk
0:00:06.5]} 22... Bxf5 {[%clk 0:00:31.8]} 23. f3 {[%clk 0:00:06.8]} 23... Re2
{[%clk 0:00:27.6]} 24. R4d2 {[%clk 0:00:05.3]} 24... Rfe8 {[%clk 0:00:24.8]} 25.
g4 {[%clk 0:00:03.5]} 25... Bc8 {[%clk 0:00:21.6]} 26. Bc2+ {[%clk 0:00:02.6]}
26... Kf7 {[%clk 0:00:21.9]} 27. Rxe2 {[%clk 0:00:02.9]} 27... Rxe2 {[%clk
0:00:20.8]} 28. Rd2 {[%clk 0:00:03.8]} 28... Re1+ {[%clk 0:00:17.9]} 29. Kf2
{[%clk 0:00:03.9]} 29... Ra1 {[%clk 0:00:15.3]} 30. h4 {[%clk 0:00:03.7]} 30...
h6 {[%clk 0:00:11.9]} 31. h5 {[%clk 0:00:03.5]} 31... Be6 {[%clk 0:00:10.6]} 32.
a3 {[%clk 0:00:03.4]} 32... Ba2 {[%clk 0:00:08.3]} 33. Bg6+ {[%clk 0:00:03.4]}
33... Ke7 {[%clk 0:00:08.4]} 34. Bd6+ {[%clk 0:00:03.6]} 34... Ke6 {[%clk
0:00:07.6]} 35. Bb4 {[%clk 0:00:03.9]} 35... Bd5 {[%clk 0:00:06.7]} 36. Bf5+
{[%clk 0:00:02]} 36... Kf7 {[%clk 0:00:07.2]} 37. Bg6+ {[%clk 0:00:02.4]} 37...
Ke6 {[%clk 0:00:06.7]} 38. Re2+ {[%clk 0:00:03.1]} 38... Kd7 {[%clk 0:00:06.3]}
39. Re7+ {[%clk 0:00:04]} 39... Kc6 {[%clk 0:00:06.8]} 40. Rxg7 {[%clk
0:00:04.9]} 40... Ra2 {[%clk 0:00:05.1]} 41. g5 {[%clk 0:00:03.3]} 41... Rxb2+
{[%clk 0:00:05.3]} 42. Kg3 {[%clk 0:00:03.4]} 42... hxg5 {[%clk 0:00:05.4]} 43.
h6 {[%clk 0:00:04.1]} 43... Nh5+ {[%clk 0:00:05.4]} 44. Bxh5 {[%clk 0:00:03.6]}
44... Rb1 {[%clk 0:00:03.6]} 45. h7 {[%clk 0:00:03.1]} 45... Rg1+ {[%clk
0:00:04.5]} 46. Kf2 {[%clk 0:00:03.5]} 46... Rh1 {[%clk 0:00:04]} 47. h8=Q
{[%clk 0:00:04.4]} 47... Rh2+ {[%clk 0:00:04]} 48. Kg3 {[%clk 0:00:04.6]} 48...
g4 {[%clk 0:00:04.9]} 49. Qc8+ {[%clk 0:00:05]} 49... Kb6 {[%clk 0:00:04.3]} 50.
Qc7# {[%clk 0:00:05.9]} 1-0

[Event "Early-Titled-Tuesday-Blitz-May-14-2024"]
[Site "Chess.com"]
[Date "2024.05.14"]
[Round "4"]
[White "meoluoi91"]
[Black "lilleper1"]
[Result "0-1"]
[WhiteElo "2574"]
[BlackElo "2918"]
[TimeControl "180+1"]
[EndTime "8:41:45 PDT"]
[Termination "lilleper1 won by resignation"]

1. d4 {[%clk 0:03:00.9]} 1... Nf6 {[%clk 0:02:58.9]} 2. c3 {[%clk 0:03:00.6]}
2... d5 {[%clk 0:02:57.7]} 3. Bg5 {[%clk 0:02:57.7]} 3... Ne4 {[%clk 0:02:56.8]}
4. Bf4 {[%clk 0:02:55.7]} 4... c5 {[%clk 0:02:56]} 5. Nf3 {[%clk 0:02:49.5]}
5... Nc6 {[%clk 0:02:55.3]} 6. e3 {[%clk 0:02:46.9]} 6... Bf5 {[%clk 0:02:53.6]}
7. Nbd2 {[%clk 0:02:45.9]} 7... e6 {[%clk 0:02:51.6]} 8. Nxe4 {[%clk 0:02:42.2]}
8... Bxe4 {[%clk 0:02:42.2]} 9. Bd3 {[%clk 0:02:42.1]} 9... Bxd3 {[%clk
0:02:40.8]} 10. Qxd3 {[%clk 0:02:42.2]} 10... Bd6 {[%clk 0:02:41.2]} 11. Bxd6
{[%clk 0:02:39.8]} 11... Qxd6 {[%clk 0:02:41.1]} 12. O-O {[%clk 0:02:40]} 12...
O-O {[%clk 0:02:40.8]} 13. Rad1 {[%clk 0:02:37.9]} 13... Rfd8 {[%clk 0:02:40.1]}
14. Ng5 {[%clk 0:02:27.1]} 14... f5 {[%clk 0:02:34.7]} 15. f4 {[%clk 0:02:24.8]}
15... c4 {[%clk 0:02:28.6]} 16. Qe2 {[%clk 0:02:21.4]} 16... h6 {[%clk
0:02:26.5]} 17. Nf3 {[%clk 0:02:20.7]} 17... b5 {[%clk 0:02:26.4]} 18. Ne5
{[%clk 0:02:20.9]} 18... Nxe5 {[%clk 0:02:26.4]} 19. fxe5 {[%clk 0:02:13.7]}
19... Qe7 {[%clk 0:02:26.5]} 20. Rf3 {[%clk 0:02:10.8]} 20... Rf8 {[%clk
0:02:19.9]} 21. Rdf1 {[%clk 0:02:10.8]} 21... b4 {[%clk 0:02:18.8]} 22. cxb4
{[%clk 0:02:06.5]} 22... Qxb4 {[%clk 0:02:14.2]} 23. h3 {[%clk 0:02:02.1]} 23...
Rab8 {[%clk 0:02:10.3]} 24. R1f2 {[%clk 0:02:01.8]} 24... Rb7 {[%clk 0:02:01.4]}
25. g4 {[%clk 0:02:00.4]} 25... g6 {[%clk 0:01:45.8]} 26. gxf5 {[%clk
0:01:56.1]} 26... Rxf5 {[%clk 0:01:43.7]} 27. Rxf5 {[%clk 0:01:50.3]} 27... gxf5
{[%clk 0:01:44.6]} 28. Kh2 {[%clk 0:01:43.1]} 28... Rg7 {[%clk 0:01:39.9]} 29.
Rg2 {[%clk 0:01:12.6]} 29... a5 {[%clk 0:01:36.7]} 30. Rxg7+ {[%clk 0:01:08.4]}
30... Kxg7 {[%clk 0:01:37.6]} 31. Kg3 {[%clk 0:00:46.7]} 31... a4 {[%clk
0:01:36]} 32. Kh4 {[%clk 0:00:46.9]} 32... Qe7+ {[%clk 0:01:27.1]} 33. Kg3
{[%clk 0:00:47]} 33... a3 {[%clk 0:01:25.7]} 34. bxa3 {[%clk 0:00:41.1]} 34...
Qxa3 {[%clk 0:01:26.6]} 35. Kh4 {[%clk 0:00:36.7]} 35... Qe7+ {[%clk 0:00:56.7]}
36. Kg3 {[%clk 0:00:36.9]} 36... Qg5+ {[%clk 0:00:56.4]} 37. Kh2 {[%clk
0:00:29.2]} 37... f4 {[%clk 0:00:53.3]} 38. exf4 {[%clk 0:00:15.5]} 38... Qxf4+
{[%clk 0:00:54.2]} 39. Kg2 {[%clk 0:00:16]} 39... Qxd4 {[%clk 0:00:52.2]} 40. a4
{[%clk 0:00:16.1]} 40... c3 {[%clk 0:00:48.4]} 41. a5 {[%clk 0:00:13.9]} 41...
Qe4+ {[%clk 0:00:31.1]} 42. Kf2 {[%clk 0:00:12.6]} 42... c2 {[%clk 0:00:25.9]}
43. Qd2 {[%clk 0:00:12.7]} 43... Qc4 {[%clk 0:00:23.3]} 44. Qc1 {[%clk
0:00:12.7]} 44... Qc5+ {[%clk 0:00:20.8]} 45. Kf3 {[%clk 0:00:13.2]} 45... Qxa5
{[%clk 0:00:16.5]} 46. Qxc2 {[%clk 0:00:12.6]} 46... Qa3+ {[%clk 0:00:16.6]} 47.
Kf4 {[%clk 0:00:11.8]} 47... Qe7 {[%clk 0:00:16.4]} 48. Qg2+ {[%clk 0:00:11.1]}
48... Kf7 {[%clk 0:00:16.4]} 49. Qg4 {[%clk 0:00:11.2]} 49... Kf8 {[%clk
0:00:14.8]} 50. Ke3 {[%clk 0:00:10.8]} 50... Qg5+ {[%clk 0:00:14.5]} 51. Kd4
{[%clk 0:00:04.6]} 51... Qxg4+ {[%clk 0:00:14.2]} 52. hxg4 {[%clk 0:00:05.5]}
52... Kf7 {[%clk 0:00:15.1]} 53. Kc5 {[%clk 0:00:06.1]} 53... Kg6 {[%clk
0:00:15]} 0-1